Cogmind - Beta 13 @@@ ROGUE MODE // 2024.04.01 @ 06:58:47 Player: ZO2D2 Result: Destroyed by Y-45 Defender with Heavy Assault Rifle Performance ------------- Evolutions (1) 500 Regions Visited (2) 400 Robots Destroyed (24) 120 Value Destroyed (549) 549 Prototype IDs (2) 40 Alien Tech Used (0) 0 Bonus (0) 0 TOTAL SCORE: 1609 Bonus ------- None Cogmind --------- Core Integrity 0/400 Matter 290/300 Energy 100/100 System Corruption 0% Temperature Cool (27) Movement Core (250) Ox4 Location -9/Materials Parts ------- > --- POWER (1) -------- (None) > --- PROPULSION (3) --- (None) > --- UTILITY (3) ------ Heat Sink Medium Storage Unit Signal Interpreter > --- WEAPON (2) ------- Assault Rifle > --- INVENTORY (10) --- Light Nuclear Core Small Storage Unit Visual Processing Unit Peak State ------------ > --- POWER ------------ Ion Engine > --- PROPULSION ------- Light Treads Light Treads > --- UTILITY ---------- Medium Storage Unit Signal Interpreter Hardened Light Armor Plating > --- WEAPON ----------- EM Shotgun Assault Rifle > --- INVENTORY -------- Ion Engine Light Nuclear Core Heat Sink Small Storage Unit Visual Processing Unit Beam Rifle Assault Rifle Light Assault Rifle Heavy Assault Rifle [Rating: 11] Favorites ----------- Power Ion Engine Engine Ion Engine Propulsion Light Treads Treads Light Treads Utility Medium Storage Unit Device Sensor Array Storage Medium Storage Unit Processor Signal Interpreter Protection Hardened Light Armor Plating Weapon Assault Rifle Energy Gun EM Pulse Gun Ballistic Gun Assault Rifle Build | -11 -10 -9 ------- Run | Yrd Mat Mat Slots Evolved 2 | . . 2 Power . | . . . Propulsion 1 | . . 1 Utility 1 | . . 1 Weapon . | . . . Parts Attached 21 | 6 4 11 Power 2 | 1 . 1 Engine 2 | 1 . 1 Core . | . . . Reactor . | . . . Propulsion 2 | 2 . . Treads 2 | 2 . . Leg . | . . . Wheel . | . . . Hover . | . . . Flight . | . . . Utility 6 | 1 2 3 Device 2 | . 1 1 Storage 2 | 1 1 . Processor 1 | . . 1 Hackware . | . . . Protection 1 | . . 1 Artifact . | . . . Weapon 11 | 2 2 7 Energy Gun 3 | . 1 2 Energy Cannon . | . . . Ballistic Gun 8 | 2 1 5 Ballistic Cannon . | . . . Launcher . | . . . Special Weapon . | . . . Impact Weapon . | . . . Slashing Weapon . | . . . Piercing Weapon . | . . . Special Melee Weapon . | . . . Unidentified Prototypes . | . . . Parts Lost 13 | . 1 12 Power 2 | . . 2 Propulsion 2 | . . 2 Utility 2 | . . 2 Weapon 7 | . 1 6 Highest Loss Streak 10 | . 1 10 To Critical Strikes . | . . . Average Slot Usage (%) 84 | . 94 77 Engine 11 | . 14 10 Treads 21 | . 28 16 Device 7 | . 8 6 Storage 12 | . 14 11 Processor 6 | . . 11 Protection 1 | . . 2 Energy Gun 4 | . 5 4 Ballistic Gun 18 | . 22 15 Naked Turns . | . . . Heaviest Build 26 | 14 20 26 Greatest Support 40 | 40 40 40 Greatest Overweight (x) 7 | . . 7 Average Overweight (x) . | . . . Largest Inventory Capacity 10 | 8 10 10 Average Capacity 9 | 7 9 10 Most Carried 10 | 5 8 10 Average Carried 6 | 2 5 8 Final Capacity 10 | 8 10 10 Final Carried 7 | 2 7 3 Class Distribution -------------------- 100% | Mutant Dominant Class ---------------- Mutant | -10/Materials Mutant | -9/Materials Resources | -11 -10 -9 ----------- Run | Yrd Mat Mat Matter Collected 578 | 222 165 191 Remotely . | . . . Salvage Created 680 | . 290 390 Parts 51 | . 26 25 Haulers Intercepted . | . . . Recyclers Shooed . | . . . Parts Field Recycled . | . . . Retrieved Matter . | . . . Parts Self-Destructed . | . . . Prevented . | . . . Kills | -11 -10 -9 ------- Run | Yrd Mat Mat Combat Hostiles Destroyed 21 | . 7 14 Guns 21 | . 7 14 Classes Destroyed 4 | . 4 . Tunneler 1 | . 1 . Watcher 2 | . 2 . Swarmer 10 | . 3 7 Grunt 11 | . 4 7 Best Kill Streak 4 | . 4 4 Combat Bots Only 4 | . 3 4 Max Kills in Single Turn 2 | . 2 1 Gunslinging 1 | . 1 . Exploded . | . . . Melee . | . . . Uniques/NPCs Destroyed . | . . . Combat | -11 -10 -9 -------- Run | Yrd Mat Mat Hostile Shots Fired 209 | . 42 167 Missed 46 | . 10 36 Damage Taken 1858 | . 332 1526 Core 487 | . 78 409 Absorbed by Shields . | . . . Core Remaining (%) 84 | 100 68 . Volleys Fired 73 | . 22 51 Largest 2 | . 2 2 Hottest 101 | . 60 101 Shots Fired 124 | . 44 80 Gun 124 | . 44 80 Cannon . | . . . Launcher . | . . . Special . | . . . Kinetic 83 | . 30 53 Thermal 14 | . . 14 Explosive . | . . . Electromagnetic 27 | . 14 13 Robot Hit Streak 17 | . 17 6 Robot Miss Streak 5 | . 2 5 Penetration Max . | . . . Secondary Targets 4 | . 3 1 Max Gunslinging Chain 1 | . 1 1 Shots Hit Robots 83 | . 32 51 Core Hits 36 | . 14 22 Critical Kills . | . . . Critical Parts Destroyed . | . . . Critical Strikes 1 | . . 1 Burn 1 | . . 1 Melee Attacks . | . . . Impact . | . . . Slashing . | . . . Piercing . | . . . Sneak Attacks . | . . . Combat Hostiles . | . . . Follow-up Attacks . | . . . Damage Inflicted 1136 | . 466 670 Guns 1124 | . 457 667 Cannons . | . . . Explosions . | . . . Melee . | . . . Ramming 12 | . 9 3 Kinetic 725 | . 297 428 Thermal 102 | . . 102 Explosive . | . . . Electromagnetic 297 | . 160 137 Impact . | . . . Slashing . | . . . Piercing . | . . . Highest Corruption . | . . . Average Corruption . | . . . Corruption Purged . | . . . Corruption Blocked . | . . . Overload Shots . | . . . Overflow Damage . | . . . Projectiles . | . . . Explosions . | . . . Melee . | . . . Knockbacks . | . . . Impact . | . . . Kinetic . | . . . Secondary . | . . . Self-Inflicted Damage . | . . . Shots . | . . . Rammed 1 | . . 1 Targets Rammed 2 | . 1 1 Kicked . | . . . Crushed 1 | . 1 . Highest Temperature 386 | . 42 386 Average Temperature 153 | . 18 193 Received Heat Transfer 930 | . 132 798 Effects 2 | . . 2 Shutdowns 1 | . . 1 Damage (minor) 1 | . . 1 Siege Activations . | . . . Robots Corrupted . | . . . Combat Hostiles . | . . . Parts Fried . | . . . Impact Corruptions . | . . . Robots Melted . | . . . Combat Hostiles . | . . . Parts Melted . | . . . Heat Transferred 333 | . . 333 Parts Sabotaged . | . . . Parts Stolen . | . . . Parts Stripped . | . . . Power Chain Reactions . | . . . Alert | -11 -10 -9 ------- Run | Yrd Mat Mat Peak Influence 200 | . 200 176 Initial . | . . . Average 47 | . 76 36 Maximum Alert Level 1 | . 1 . Low Security (%) 93 | 100 81 100 Level 1 6 | . 18 . Level 2 . | . . . Level 3 . | . . . Level 4 . | . . . Level 5 . | . . . High Security . | . . . Max Security . | . . . Squads Dispatched 1 | . . 1 Investigation 1 | . . 1 Extermination . | . . . Reinforcement . | . . . Assault . | . . . Garrison . | . . . Intercept . | . . . Searches Triggered . | . . . Construction Impeded . | . . . Haulers Reinforced . | . . . Active Scanning Responses . | . . . Cargo Convoy Interrupts . | . . . Stealth | -11 -10 -9 --------- Run | Yrd Mat Mat Distress Signals 2 | . 1 1 Communications Jammed . | . . . Distress Signals . | . . . Times Spotted 29 | . 11 18 Peak Tracking Total 6 | . 4 6 Tactical Retreats 1 | . 1 . Traps | -11 -10 -9 ------- Run | Yrd Mat Mat Traps Triggered . | . . . Indirectly . | . . . Trap Hack Attempts . | . . . Triggered . | . . . Disarmed . | . . . Reprogrammed . | . . . Reused . | . . . Traps Extracted . | . . . Installed . | . . . Triggered . | . . . Machines | -11 -10 -9 ---------- Run | Yrd Mat Mat Machines Disabled 1 | . . 1 Max in Single Turn 1 | . . 1 Machines Repaired . | . . . Machines Dismantled . | . . . Machines Sabotaged . | . . . Overloaded Fab Kills . | . . . Hacking | -11 -10 -9 --------- Run | Yrd Mat Mat Machines Accessed 2 | . 1 1 Terminals 2 | . 1 1 Fabricators . | . . . Repair Stations . | . . . Recycling Units . | . . . Scanalyzers . | . . . Garrison Access . | . . . Total Hacks 5 | . 2 3 Successful 3 | . 1 2 Failed 2 | . 1 1 Catastrophic . | . . . Database Lockouts . | . . . Manual . | . . . Terminals 5 | . 2 3 Fabricators . | . . . Repair Stations . | . . . Recycling Units . | . . . Scanalyzers . | . . . Garrison Access . | . . . Terminal Hacks 3 | . 1 2 Prototype ID Bank 1 | . . 1 Alert Level 2 | . 1 1 Fabricator Hacks . | . . . Repair Station Hacks . | . . . Recycling Unit Hacks . | . . . Scanalyzer . | . . . Garrison Access Hacks . | . . . Unauthorized Hacks . | . . . Terminals . | . . . Fabricators . | . . . Repair Stations . | . . . Recycling Units . | . . . Scanalyzers . | . . . Garrison Access . | . . . Data Cores Recovered . | . . . Used . | . . . Hacking Detections 2 | . 1 1 Full Trace Events 1 | . . 1 Feedback Events . | . . . Feedback Blocked . | . . . Robot Schematics Acquired . | . . . Robots Built . | . . . Authchips . | . . . Time . | . . . Total Robot Build Rating . | . . . Part Schematics Acquired . | . . . Parts Built . | . . . Authchips . | . . . Time . | . . . Total Part Build Rating . | . . . Parts Repaired . | . . . Time . | . . . Parts Recycled . | . . . Recycled Matter . | . . . Retrieved Matter . | . . . Retrieved Components . | . . . Parts Scanalyzed . | . . . Part Schematics Acquired . | . . . Parts Damaged . | . . . Bothacking | -11 -10 -9 ------------ Run | Yrd Mat Mat Used RIF Installer . | . . . Robots Hacked . | . . . Non-combat . | . . . Combat . | . . . Robot Hacks Applied . | . . . Relay Couplers Released . | . . . Fabnet Peak Effective % . | . . . Robots Rewired . | . . . Allies Hacked . | . . . Hacks Repelled . | . . . Allies | -11 -10 -9 -------- Run | Yrd Mat Mat Total Allies . | . . . Largest Group . | . . . Highest-Rated Group . | . . . Highest-Rated Ally . | . . . Total Orders . | . . . Ally Attacks . | . . . Total Damage . | . . . Kills . | . . . Allies Corrupted . | . . . Allies Melted . | . . . Intel | -11 -10 -9 ------- Run | Yrd Mat Mat Robot Analysis Total . | . . . Derelict Logs Recovered . | . . . Drone Launches . | . . . Drone Recoveries . | . . . Exploration | -11 -10 -9 ------------- Run | Yrd Mat Mat Turns Passed 1173 | 121 438 614 Spaces Moved 565 | 71 224 270 Core 25 | 5 . 20 Treads 540 | 66 224 250 Legs . | . . . Wheels . | . . . Hover . | . . . Flight . | . . . Fastest Speed 50 | 50 160 160 Average Speed 164 | 152 160 172 Slowest Speed 400 | 160 160 400 Overloaded Moves . | . . . Propulsion Burnouts . | . . . Robots Hopped . | . . . Cave-ins Triggered . | . . . Exploration Rate (%) 18 | 5 30 21 Regions Visited 2 Branch Regions . Pre-discovered Areas . | . . . Known Exits Taken . | . . . Unknown Exits Taken 2 | 1 1 . Scrap Searched . | . . . Spaces Dug . | . . . Terrain Destroyed . | . . . Melee . | . . . Projectile . | . . . AOE . | . . . Terrain Rammed . | . . . Walls Destroyed . | . . . Machines Disabled . | . . . Actions | -11 -10 -9 --------- Run | Yrd Mat Mat Total 681 | 84 259 338 Wait . | . . . Move 563 | 70 223 270 Hop . | . . . Pick Up 21 | 8 8 5 Fast Attach . | . . . Attach 17 | 6 2 9 Detach . | . . . Swap 4 | . 2 2 Drop 1 | . 1 . Fire 73 | . 22 51 Melee . | . . . Ram . | . . . Kick . | . . . Crush 2 | . 1 1 Escape Stasis . | . . . Rewire . | . . . Trap . | . . . Miscellaneous . | . . . Route ------- -11/Scrapyard -10/Materials -9/Materials History --------- Turn | Location | Event 14 | -11/Scrapyard | Discovered new exit (range 15) 122 | -11/Scrapyard | Entered Materials 314 | -10/Materials | Build established: Mutant 454 | -10/Materials | Discovered new exit (range 16) 560 | -10/Materials | Entered another Materials area 560 | -9/Materials | Evolved 2 slots: Propulsion x1, Utility x1 1100 | -9/Materials | Core integrity fell below 50% 1152 | -9/Materials | Core integrity fell below 20% 1165 | -9/Materials | Lost 10 parts (2p1n1u6w) 1174 | -9/Materials | Destroyed by Y-45 Defender with Heavy Assault Rifle Last Messages --------------- 01107_ R-06 Scavenger inserts Lgt. Ion Engine into recycling unit. 01107_ R-06 Scavenger collects Sml. Laser. 01108_ Recycling unit begins recycling process. 01108_ G-47 Trooper destroyed. 01109_ Assault Rifle destroyed. 01110_ Acquired 46 matter. 01110_ R-06 Scavenger collects Corrupted Aluminum Leg. 01111_ R-06 Scavenger collects Lgt. Nuclear Core. 01113_ R-06 Scavenger inserts Corrupted Aluminum Leg into recycling unit. 01134_ Ion Engine destroyed. 01134_ Critical hit (Burn: +37). 01143_ Acquired Assault Rifle. 01152_ Processing Tank disabled. 01163_ G-34 Mercenary destroyed. 01165_ Acquired 37 matter. 01174_ Critical hit (Burn: +37). Map ----- +----------------------------------------------------+ | ????????????? ?? ??? #??????????????????????? | | ????????????? ??" """ #??????????????????????? | | ?????????????# "?" """ #??????????????????????? | | ????????????#" """ """ ##?????????????????????? | | ????????????#T ??????????????????????? | | ?????????????" ???????????????????????? | | ??????????#### ????????????????????????? | | ?????????? ! #????????????????????????? | | ????????? #????????????????????????? | | ???? "" """ ###??????????????????????? | | ?????? "T """ ""#??????????????????????? | | ?????????# "" ] """ T"#??????????????????????? | | ??????????# ""#??????????????????????? | | ??????????# ###??????????????????????? | | ??????????# """ """% ""#??????????????????????? | | ??????????# """ """ Y"#??????????????????????? | | ??????????# """ """% ""#??????????????????????? | | ??????????+ % %% ###??????????????????????? | | ??????????# ##########???????????????? | | ??????????##+######## # #???????????????? | | ????????????????????# # " #???????????????? | | ????????????????????# # T """ #???????????????? | | ????????????????????# # " "" #???????????????? | | ????????????????????# # """ #???????????????? | | ????????????????????# # "" #???????????????? | | ????????????????????# #@ """ #???????????????? | | ????????????????????# Y #???????????????? | | ????????????????????#% # #???????????????? | | ????????????????????# % ##########???????????????? | | #######?????????????#u %#### #???????????????? | | #???########### #???????????????? | | """ #???# # #???????????????? | | """ #???# / #???????????????? | | """ #???# ## ##### #???????????????? | | #???# ##+###### ##???????????????? | | """ #???# ##%* # #########????????? | | """ #???# ## # # #????????? | | """ #???# ## """ + + ! #????????? | | #???# =*[ ## """ # # ! #????????? | | ##+###########+##+#### """ # #########????????? | | *%[%=* + # #????????????????? | | *##################????????????????? | | ##+#########+####????????????????????????????????? | | #?# #????????????????????????????????? | | """ #?#* #????????????????????????????????? | | """ #?# #????????????????????????????????? | | """ #?# """ #????????????????????????????????? | | #?# """ #????????????????????????????????? | | """ #?# """ #????????????????????????????????? | | """ #?########????????????????????????????????? | +----------------------------------------------------+ Best States ------------- Heat Dissipation 38 Energy Generation 10 Energy Capacity 250 Matter Stores 300 Matter Capacity 300 Sight Range 16 Robot Scan Range 14 Terrain Scan Density 10 Armor Coverage 150 Evasion (%) 40 Recoil Reduction 2 Item Schematics ----------------- None Robot Schematics ------------------ None Fabricated ------------ Nothing Alien Tech Used ----------------- None Achievements -------------- None Challenges ------------ None Game ------ Seed DamperDynamicReconfigurator Manual? 0 Play Time 00:14:00 Cumulative 4.9 hours Start 2024.04.01 @ 06:47:14 End 2024.04.01 @ 06:58:47 Sessions 1 Manual Loads 0 Difficulty Rogue Special Mode None Game No. 8 Rogue 8 Adventurer 0 Explorer 0 Win Type - Total 0 Types 0/0/0/0/0/0/0/0/0 Lore% 5 Gallery% 14 Achievement% 12 Wizard Run 0 Options --------- Layout 1 ASCII 0 Keyboard 0 Movement Mouse Keybinds 0 Fullscreen 1 Font 24/Smallcaps Map View 50x35 Zoom Use 0% Tactical HUD 1 Map Filters NONE Filters NONE Steam 1 RUN: 8001bfb5-cee1-4e91-b45b-72ecb230636f